Cogmind - Beta 16 @@@ ROGUE MODE // 2025.12.20 @ 01:21:31 Player: Red Box Result: Destroyed by Piercing Trap Performance ------------- Evolutions (0) 0 Regions Visited (3) 600 Robots Destroyed (48) 240 Value Destroyed (1109) 1109 Prototype IDs (2) 40 Alien Tech Used (0) 0 Bonus (0) 0 TOTAL SCORE: 1989 Bonus ------- None Cogmind --------- Core Integrity 0/250 Matter 247/300 Energy 124/125 System Corruption 1% Temperature Cool (0) Movement Rolling (210) Ox8 Location -10/Subcaves Parts ------- > --- POWER (1) -------- Light Ion Engine > --- PROPULSION (2) --- Improved Treads (fused) Armored Wheel > --- UTILITY (2) ------ Huge Storage Unit Improved Light Armor Plating > --- WEAPON (2) ------- Subdweller Beam Cannon Subdweller Beam Cannon > --- INVENTORY (25) --- Improved Ion Engine Improved Ion Engine Improved Treads Improved Treads Armored Wheel Armored Wheel Improved Heat Sink Humpback Large Battery (200) High-capacity Matter Pod (200) Improved Terrain Scanner Scrap Shield Beam Rifle Beam Rifle Makeshift Shrapnel Gun Improved Light Cannon Improved Light Cannon Improved Light Cannon Grenade Launcher Mini Grenade Launcher Subdweller Shrapnel Launcher Mining Laser Piercing Trap Peak State ------------ > --- POWER ------------ Improved Ion Engine > --- PROPULSION ------- Improved Treads Armored Wheel > --- UTILITY ---------- Improved Heat Sink Huge Storage Unit > --- WEAPON ----------- Beam Rifle Beam Rifle > --- INVENTORY -------- Improved Ion Engine Improved Ion Engine Improved Treads Improved Treads Improved Treads Wheel Armored Wheel Armored Wheel Armored Wheel Large Storage Unit Huge Storage Unit Large Battery High-capacity Matter Pod Improved Terrain Scanner Core Shielding Beam Rifle Beam Rifle Improved Light Cannon Improved Light Cannon Improved Light Cannon Improved Light Cannon Grenade Launcher Datajack Mining Laser [Rating: 18] Favorites ----------- Power Improved Ion Engine Engine Improved Ion Engine Propulsion Improved Treads Treads Improved Treads Leg Aluminum Leg Wheel Armored Wheel Utility Huge Storage Unit Device Improved Terrain Scanner Storage Huge Storage Unit Protection Improved Light Armor Plating Weapon Improved Light Cannon Energy Gun Beam Rifle Energy Cannon Subdweller Beam Cannon Ballistic Gun Light Assault Rifle Ballistic Cannon Improved Light Cannon Launcher Grenade Launcher Special Weapon Mining Laser Special Melee Weapon Datajack Build | -11 -10 -10 -10 ------- Run | Yrd Mat Min Sub Slots Evolved . | . . . . Power . | . . . . Propulsion . | . . . . Utility . | . . . . Weapon . | . . . . Parts Attached 41 | 8 25 2 6 Power 7 | 1 5 . 1 Engine 7 | 1 5 . 1 Core . | . . . . Reactor . | . . . . Propulsion 12 | 2 8 . 2 Treads 6 | . 4 . 2 Leg 2 | 2 . . . Wheel 4 | . 4 . . Hover . | . . . . Flight . | . . . . Utility 9 | 2 5 1 1 Device 2 | 1 1 . . Storage 6 | 1 4 1 . Processor . | . . . . Hackware . | . . . . Protection 1 | . . . 1 Artifact . | . . . . Weapon 13 | 3 7 1 2 Energy Gun 2 | . 2 . . Energy Cannon 2 | . . . 2 Ballistic Gun 3 | 3 . . . Ballistic Cannon 2 | . 2 . . Launcher 2 | . 1 1 . Special Weapon 1 | . 1 . . Impact Weapon . | . . . . Slashing Weapon . | . . . . Piercing Weapon . | . . . . Special Melee Weapon 1 | . 1 . . Unidentified Prototypes . | . . . . Parts Lost 7 | . 1 . 6 Power 2 | . 1 . 1 Propulsion 2 | . . . 2 Utility 1 | . . . 1 Weapon 2 | . . . 2 Highest Loss Streak 2 | . 1 . 2 To Critical Strikes . | . . . . Average Backups 20 | 5 14 24 22 Power 1 | . . 2 2 Propulsion 5 | 3 4 6 4 Utility 5 | . 3 6 5 Weapon 7 | 1 5 8 8 Tool/Special . | . . . . Unused Backups 25 | . 7 1 17 Power 2 | . . . 2 Propulsion 6 | . 3 . 3 Utility 8 | . 2 1 5 Weapon 9 | . 2 . 7 Tool/Special . | . . . . Average Slot Usage (%) 99 | . 99 100 99 Engine 13 | . 13 14 13 Treads 13 | . 12 14 14 Wheel 13 | . 12 14 13 Device 10 | . 13 14 5 Storage 14 | . 14 14 14 Protection 3 | . . . 8 Energy Gun 9 | . 5 25 2 Energy Cannon 3 | . . . 7 Ballistic Cannon 11 | . 15 . 15 Launcher 1 | . 4 . 1 Special Weapon 1 | . . 2 1 Peak Build Rating 18 | 9 18 18 18 Average Rating 15 | 6 13 17 16 On Entrance 11 | . 9 18 18 Avg Prop Armor Cover (%) 10 | . 9 12 9 Naked Turns . | . . . . Heaviest Build 102 | 13 96 94 102 Greatest Support 20 | 20 20 12 12 Greatest Overweight (x) 9 | 1 9 7 8 Average Overweight (x) 5 | . 3 7 7 Largest Inventory Capacity 25 | 8 25 25 25 Average Capacity 22 | 7 16 25 25 Most Carried 25 | 7 25 25 25 Average Carried 21 | 5 14 24 24 Final Capacity 25 | 8 25 25 25 Final Carried 25 | 7 25 25 25 Class Distribution -------------------- 99% | Mutant Dominant Class ---------------- Mutant | -10/Materials Mutant | -10/Mines Mutant | -10/Subcaves Resources | -11 -10 -10 -10 ----------- Run | Yrd Mat Min Sub Matter Collected 2015 | 274 692 432 617 Remotely . | . . . . Salvage Created 1166 | 39 481 303 343 Parts 83 | 7 37 8 31 Haulers Intercepted 2 | . 2 . . Recyclers Shooed 2 | 1 1 . . Parts Field Recycled . | . . . . Retrieved Matter . | . . . . Parts Self-Destructed 15 | . . . 15 Prevented . | . . . . Parts Restored . | . . . . Kills | -11 -10 -10 -10 ------- Run | Yrd Mat Min Sub Combat Hostiles Destroyed 48 | . 12 17 19 Guns 13 | . . 9 4 Cannons 15 | . 4 . 11 AOE 19 | . 8 7 4 Classes Destroyed 12 | 1 7 1 3 Worker 2 | . 2 . . Builder 2 | . 1 1 . Tunneler 4 | 2 2 . . Hauler 2 | . 2 . . Recycler 2 | . 1 1 . Watcher 3 | . 3 . . Swarmer 11 | . 4 . 7 Grunt 10 | . 8 2 . Sentry 2 | . . . 2 Artisan 1 | . . . 1 Subdweller 10 | . . . 10 Assembled 15 | . . 15 . Best Kill Streak 6 | 1 4 6 4 Combat Bots Only 5 | . 3 5 4 Max Kills in Single Turn 3 | 1 2 3 2 Gunslinging . | . . . . Exploded 2 | . 2 2 1 Melee . | . . . . Uniques/NPCs Destroyed . | . . . . Combat | -11 -10 -10 -10 -------- Run | Yrd Mat Min Sub Hostile Shots Fired 147 | . 44 41 62 Missed 53 | . 13 15 25 Hits 94 | . 31 26 37 Melee 4 | . . 4 . Projectile 90 | . 31 22 37 Critical Strikes 1 | . . . 1 Damage Taken 1496 | . 399 408 689 Core 258 | . 72 64 122 Absorbed by Shields . | . . . . Regen/Repaired (Parts) 96 | . 96 . . Core Remaining (%) 100 | 100 . . . Volleys Fired 238 | 10 56 92 80 Largest 2 | 2 2 2 2 Hottest 160 | 40 112 112 160 Shots Fired 375 | 20 110 126 119 Gun 150 | 20 49 66 15 Cannon 112 | . 47 . 65 Launcher 30 | . 13 6 11 Special 83 | . 1 54 28 Kinetic 155 | 20 77 . 58 Thermal 190 | . 20 120 50 Explosive 30 | . 13 6 11 Electromagnetic . | . . . . Robot Hit Streak 14 | 5 14 14 9 Robot Miss Streak 6 | 4 5 6 3 Penetration Max . | . . . . Secondary Targets 2 | . . 2 . Max Gunslinging Chain 1 | . . 1 . Shots Hit Robots 168 | 11 63 41 53 Core Hits 96 | 5 34 29 28 Critical Kills . | . . . . Critical Parts Destroyed 2 | . 2 . . Critical Strikes 11 | . 6 3 2 Burn 8 | . 3 3 2 Destroy 2 | . 2 . . Blast 1 | . 1 . . Melee Attacks 1 | . 1 . . Impact . | . . . . Slashing . | . . . . Piercing . | . . . . Sneak Attacks 1 | . 1 . . Combat Hostiles . | . . . . Follow-up Attacks . | . . . . Damage Inflicted 4207 | 101 1447 944 1715 Guns 1150 | 101 353 563 133 Cannons 1204 | . 371 . 833 Explosions 1829 | . 723 357 749 Melee . | . . . . Ramming . | . . . . Kinetic 1336 | 101 543 . 692 Thermal 1042 | . 181 587 274 Explosive 1829 | . 723 357 749 Electromagnetic . | . . . . Impact . | . . . . Slashing . | . . . . Piercing . | . . . . Highest Corruption 1 | . 1 1 1 Average Corruption 1 | . 1 1 1 Corruption Purged . | . . . . Corruption Blocked . | . . . . Effects 66 | . 21 17 28 Message Errors 16 | . 6 4 6 Matter Fused 13 | . 3 5 5 Heat Flow Errors 10 | . 2 3 5 Energy Discharges 8 | . 3 2 3 Parts Fused 2 | . . 1 1 Data Loss (minor) 7 | . 3 . 4 Data Loss (major) 6 | . 2 2 2 Misfires 2 | . 1 . 1 Alerts 1 | . . . 1 Weapon Failures 1 | . 1 . . Overload Shots . | . . . . Overflow Damage 14 | . 12 . 2 Projectiles 12 | . 12 . . Explosions 2 | . . . 2 Melee . | . . . . Knockbacks 8 | . 5 . 3 Impact . | . . . . Kinetic 8 | . 5 . 3 Secondary . | . . . . Self-Inflicted Damage 63 | . 17 15 31 Shots 3 | . 1 1 1 Rammed . | . . . . Targets Rammed . | . . . . Kicked . | . . . . Crushed . | . . . . Highest Temperature 248 | . 191 234 248 Average Temperature 46 | . 30 50 85 Received Heat Transfer 475 | . 168 214 93 Siege Activations . | . . . . Martial Activations . | . . . . Shielding Activations . | . . . . Robots Disrupted . | . . . . Combat Hostiles . | . . . . Robots Corrupted . | . . . . Combat Hostiles . | . . . . Parts Fried . | . . . . Impact Corruptions . | . . . . Robots Melted 1 | . . 1 . Combat Hostiles 1 | . . 1 . Parts Melted 4 | . 3 1 . Heat Transferred 3010 | . 666 1678 666 Parts Sabotaged . | . . . . Parts Stolen . | . . . . Parts Stripped . | . . . . Power Chain Reactions . | . . . . Alert | -11 -10 -10 -10 ------- Run | Yrd Mat Min Sub Maximum Alert Level 1 | . 1 . . Low Security (%) 99 | 100 99 100 . Level 1 . | . . . . Level 2 . | . . . . Level 3 . | . . . . Level 4 . | . . . . Level 5 . | . . . . High Security . | . . . . Max Security . | . . . . Peak Influence 205 | 5 205 40 . Initial 9 | . . 9 . Average 30 | . 56 1 . Influence Increases 895 | 10 590 95 200 Destroy 0b10 Robot/C 460 | . 240 40 180 Destroy 0b10 Robot/NC 75 | 10 55 10 . Destroy Leader 100 | . 70 10 20 Successful Hack 30 | . 30 . . Select Force Hacks 60 | . 60 . . Destroy Structure 95 | . 60 35 . Lose Combat Pursuer 75 | . 75 . . Influence Decreases 887 | 10 566 119 192 Entered New Map 15 | . . 15 . Time Decay 842 | 10 556 104 172 Lost Part 30 | . 10 . 20 Squads Dispatched 3 | . 3 . . Investigation 2 | . 2 . . Extermination . | . . . . Reinforcement 1 | . 1 . . Assault . | . . . . Garrison . | . . . . Intercept . | . . . . Searches Triggered . | . . . . Construction Impeded . | . . . . Haulers Reinforced . | . . . . Active Scanning Responses . | . . . . Cargo Convoy Interrupts . | . . . . Stealth | -11 -10 -10 -10 --------- Run | Yrd Mat Min Sub Distress Signals 2 | . 1 1 . Communications Jammed . | . . . . Distress Signals . | . . . . Times Spotted 66 | . 23 24 19 Peak Tracking Total 5 | . 4 5 3 Tactical Retreats 12 | . 4 8 . Traps | -11 -10 -10 -10 ------- Run | Yrd Mat Min Sub Traps Triggered 2 | . 1 . 1 Indirectly . | . . . . Trap Hack Attempts 34 | . 34 . . Triggered . | . . . . Disarmed 1 | . 1 . . Reprogrammed 2 | . 2 . . Reused . | . . . . Traps Extracted . | . . . . Installed . | . . . . Triggered . | . . . . Most Traps Carried 1 | . . . 1 Machines | -11 -10 -10 -10 ---------- Run | Yrd Mat Min Sub Machines Disabled . | . . . . Max in Single Turn . | . . . . Machines Repaired . | . . . . Machines Dismantled . | . . . . Machines Sabotaged . | . . . . Overloaded Fab Kills . | . . . . Hacking | -11 -10 -10 -10 --------- Run | Yrd Mat Min Sub Machines Accessed 12 | . 10 . 2 Terminals 7 | . 7 . . Fabricators . | . . . . Repair Stations 1 | . 1 . . Recycling Units 2 | . 2 . . Scanalyzers . | . . . . Garrison Access . | . . . . Total Hacks 50 | . 48 . 2 Successful 35 | . 33 . 2 Failed 14 | . 14 . . Catastrophic 1 | . 1 . . Database Lockouts 1 | . 1 . . Manual 27 | . 27 . . Terminals 32 | . 32 . . Fabricators . | . . . . Repair Stations 11 | . 11 . . Recycling Units 5 | . 5 . . Scanalyzers . | . . . . Garrison Access . | . . . . Terminal Hacks 10 | . 8 . 2 Robot Analysis 4 | . 4 . . Prototype ID Bank 1 | . 1 . . Open Door 1 | . . . 1 Locate Traps 2 | . 2 . . Hauler Manifests 1 | . 1 . . Release Object 1 | . . . 1 Fabricator Hacks . | . . . . Repair Station Hacks 10 | . 10 . . Scan Component 5 | . 5 . . Repair 5 | . 5 . . Recycling Unit Hacks 2 | . 2 . . Retrieve Components 2 | . 2 . . Scanalyzer . | . . . . Garrison Access Hacks . | . . . . Unauthorized Hacks 13 | . 13 . . Terminals 10 | . 10 . . Track 1 | . 1 . . Botnet 4 | . 4 . . Skim 5 | . 5 . . Fabricators . | . . . . Repair Stations . | . . . . Recycling Units 3 | . 3 . . Reject 1 | . 1 . . Tunnel 2 | . 2 . . Scanalyzers . | . . . . Garrison Access . | . . . . Data Cores Recovered . | . . . . Used . | . . . . Hacking Detections 8 | . 8 . . Full Trace Events . | . . . . Feedback Events . | . . . . Feedback Blocked . | . . . . Robot Schematics Acquired . | . . . . Robots Built . | . . . . Authchips . | . . . . Time . | . . . . Total Robot Build Rating . | . . . . Part Schematics Acquired . | . . . . Parts Built . | . . . . Authchips . | . . . . Time . | . . . . Total Part Build Rating . | . . . . Part Studies Acquired . | . . . . Parts Repaired 5 | . 5 . . Time 166 | . 166 . . Parts Recycled . | . . . . Recycled Matter . | . . . . Retrieved Matter . | . . . . Retrieved Components 4 | . 4 . . Parts Scanalyzed . | . . . . Part Schematics Acquired . | . . . . Parts Damaged . | . . . . Bothacking | -11 -10 -10 -10 ------------ Run | Yrd Mat Min Sub Used RIF Installer . | . . . . Robots Hacked 1 | . 1 . . Non-combat 1 | . 1 . . Combat . | . . . . Robot Hacks Applied 1 | . 1 . . check_alert 1 | . 1 . . Relay Couplers Released . | . . . . Fabnet Peak Effective % . | . . . . Robots Rewired . | . . . . Allies Hacked . | . . . . Hacks Repelled . | . . . . Allies | -11 -10 -10 -10 -------- Run | Yrd Mat Min Sub Total Allies . | . . . . Largest Group . | . . . . Highest-Rated Group . | . . . . Highest-Rated Ally . | . . . . Total Orders . | . . . . Ally Attacks . | . . . . Total Damage . | . . . . Kills . | . . . . Allies Corrupted . | . . . . Allies Melted . | . . . . Intel | -11 -10 -10 -10 ------- Run | Yrd Mat Min Sub Active Infowar (turns) 3292 | 41 2125 . 1126 Terrain 3292 | 41 2125 . 1126 Robot Analysis Total 4 | . 4 . . Derelict Logs Recovered 3 | . . 1 2 Drone Launches . | . . . . Drone Recoveries . | . . . . Exploration | -11 -10 -10 -10 ------------- Run | Yrd Mat Min Sub Turns Passed 8261 | 112 2511 2161 3477 Spaces Moved 3045 | 51 1147 784 1063 Core 10 | 10 . . . Treads 257 | . 257 . . Legs 184 | 41 143 . . Wheels 2594 | . 747 784 1063 Hover . | . . . . Flight . | . . . . Fastest Speed 50 | 50 95 195 195 Average Speed 184 | 109 166 195 199 Slowest Speed 240 | 120 240 195 210 Overloaded Moves . | . . . . Propulsion Burnouts . | . . . . Robots Hopped . | . . . . Potential Cave-ins . | . . . . Cave-ins Triggered . | . . . . Exploration Rate (%) 65 | 5 99 102 54 Regions Visited 3 Branch Regions 2 Pre-discovered Areas 4 | . 4 . . Known Exits Taken . | . . . . Unknown Exits Taken 3 | 1 1 1 . Scrap Searched 7 | . . 1 6 Spaces Dug 37 | . 8 29 . Terrain Destroyed 216 | . 62 63 91 Melee . | . . . . Projectile 30 | . 7 22 1 AOE 186 | . 55 41 90 Terrain Rammed . | . . . . Walls Destroyed . | . . . . Machines Disabled . | . . . . Actions | -11 -10 -10 -10 --------- Run | Yrd Mat Min Sub Total 5158 | 87 1648 1181 2242 Wait 1669 | 12 308 293 1056 Move 3042 | 50 1146 783 1063 Hop . | . . . . Pick Up 57 | 7 39 3 8 Fast Attach 12 | 7 4 . 1 Attach 9 | . 3 . 6 Detach . | . . . . Swap 63 | 1 31 7 24 Drop 33 | . 26 3 4 Fire 238 | 10 56 92 80 Melee 1 | . 1 . . Ram . | . . . . Kick . | . . . . Crush . | . . . . Escape Stasis . | . . . . Rewire . | . . . . Trap 34 | . 34 . . Miscellaneous . | . . . . Route ------- -11/Scrapyard -10/Materials (discovered 6 exits: *Mat x3 / [*Min x2] / *Sub) -10/Mines (discovered 3 exits: *Mat x2 / *Sub) -10/Subcaves (discovered 1 exit: [*Mat]) History --------- Turn | Location | Event 13 | -11/Scrapyard | Discovered new exit (range 16) 113 | -11/Scrapyard | Entered Materials 305 | -10/Materials | Build established: Mutant 437 | -10/Materials | Discovered new exit (range 7) 478 | -10/Materials | Discovered new exit (range 8) 529 | -10/Materials | Discovered new exit (range 11) 613 | -10/Materials | Derelicts attacked the area 636 | -10/Materials | Discovered new exit (range 4) 1176 | -10/Materials | Discovered new exit (range 14) 1346 | -10/Materials | Central database locked down 1351 | -10/Materials | Learned Storage emergency access door positions 1353 | -10/Materials | Discovered new exit (range 15) 1455 | -10/Materials | Learned Storage emergency access door positions 1471 | -10/Materials | Learned location of Mines (-10) 1498 | -10/Materials | Identified exit to Materials 1537 | -10/Materials | Learned location of 1 exit from Recycling 2347 | -10/Materials | Repaired Grenade Launcher 2386 | -10/Materials | Repaired Imp. Terrain Scanner 2419 | -10/Materials | Repaired Imp. Light Cannon 2452 | -10/Materials | Repaired Imp. Light Cannon 2491 | -10/Materials | Repaired Imp. Heat Sink 2624 | -10/Materials | Entered Mines 2913 | -10/Mines | Learned Materials emergency access door positions 3055 | -10/Mines | Assembled infested the area 3060 | -10/Mines | Assisted by a Guerilla fighting off Assembled 3104 | -10/Mines | Discovered exit to Materials (range 16) 3613 | -10/Mines | Core integrity fell below 50% 3689 | -10/Mines | Found DCF Scrap (13 items) 4124 | -10/Mines | Discovered exit to Materials (range 8) 4776 | -10/Mines | Discovered new exit (range 3) 4785 | -10/Mines | Entered Subcaves 5004 | -10/Subcaves | Ambushed by Subdweller buried in earth 5137 | -10/Subcaves | Learned Materials terminal intel 5907 | -10/Subcaves | Discovered new exit (range 11) 6082 | -10/Subcaves | Core integrity fell below 20% 6205 | -10/Subcaves | A swath of the cavern ceiling suddenly collapsed 6275 | -10/Subcaves | Shifting Twisted Machinery released Piercing Trap 6295 | -10/Subcaves | Shifting Twisted Machinery released Sub. Beam Cannon 7897 | -10/Subcaves | Learned Materials stockpile data 8262 | -10/Subcaves | Destroyed by Piercing Trap Last Messages --------------- 08106_ Dropped Datajack. 08107_ Acquired Sub. Shrapnel Launcher. 08126_ 9W-ISU(u) builds Twisted Machinery. 08130_ JO-73M(u) deconstructs Twisted Machinery. 08130_ 9W-ISU(u) builds Twisted Machinery. 08132_ JO-73M(u) deconstructs Twisted Machinery. 08132_ 9W-ISU(u) builds Twisted Machinery. 08134_ JO-73M(u) deconstructs Twisted Machinery. 08134_ 9W-ISU(u) builds Twisted Machinery. 08136_ JO-73M(u) deconstructs Twisted Machinery. 08136_ 9W-ISU(u) builds Twisted Machinery. 08138_ JO-73M(u) deconstructs Twisted Machinery. 08138_ 9W-ISU(u) builds Twisted Machinery. 08140_ JO-73M(u) deconstructs Twisted Machinery. 08140_ 9W-ISU(u) builds Twisted Machinery. 08220_ System corrupted: Imp. Treads fused. 08258_ I%MXZRHKFKXR5WV GPJHWHY 08262_ Triggered Piercing Trap. 08262_ Spikes shoot up from the floor. 08262_ Critical hit (Impale). Map ----- +----------------------------------------------------+ | #### #????## ????????????????????????????? | | ###" ##???## ????????????????????????????? | | # ## ###??# ?????????????????????????????? | | # " " ##?? ??????????????????????????????? | | # " ##?? #??????????????????????????????? | | "" #???# #?????????????#????????????????? | | # " #????#"" ##??????????? #???????????????? | | "# "" #???##" " #??????#??# #???????????????? | | ## ##"##??## "" #????? ## #???????????????? | | ## ##?##?### " ##????# #??????????????? | | # #???## ## ####### ??????????????? | | # ####?# ##" # # ???????????????? | | ### """ #???????????????????? | | """"" """ #???????????????????? | | "" """## # ### #??????????????????? | | """"###### #??????????????????????????? | | # #######???# #?#????????????????????????? | | # #####?????????# ## ## #???????????????????? | | " ####?????????## #?????#??????????????? | | ##" "# #?????????# ## ##???? #??????????????? | | ## #?????????# ##?##?#???? ???????????????? | | ## # ##?????????## #??????? #????????????????? | | ## ####??????????## #?????? #?????????????????? | | # #????????????# ###### #??????????????????? | | # ##????????????# ## #???????????????????? | | ###?????????????## @ #???????????????????? | | #????????????????# #### #???????????????????? | | #????????????????####??? ##???????????????????? | | ###????????????????????????##????????????????????? | | ?????????????????????????????????????????????????? | | ?????????????????????????????????????????????????? | | ?????????????????????????????????????????????????? | | ?????????????????????????????????????????????????? | | ?????????????????????????????????????????????????? | | ?????????????????????????????????????????????????? | | ?????????????????????????????????????????????????? | | ?????????????????????????????????????????????????? | | ?????????????????????????????????????????????????? | | ?????????????????????????????????????????????????? | | ?????????????????????????????????????????????????? | | ?????????????????????????????????????????????????? | | ?????????????????????????????????????????????????? | | ?????????????????????????????????????????????????? | | | | | | | | | | | | | | | +----------------------------------------------------+ Best States ------------- Heat Dissipation 39 Energy Generation 12 Energy Capacity 265 Matter Stores 300 Matter Capacity 300 Sight Range 16 Terrain Scan Range 16 Terrain Scan Density 10 Armor Coverage 150 Evasion (%) 55 Recoil Reduction 2 Item Schematics ----------------- None Robot Schematics ------------------ None Fabricated ------------ Nothing Repaired ---------- Grenade Launcher | 51% | -10/Materials Imp. Terrain Scanner | 9% | -10/Materials Imp. Light Cannon | 79% | -10/Materials Imp. Light Cannon | 87% | -10/Materials Imp. Heat Sink | 95% | -10/Materials Studied --------- None Alien Tech Used ----------------- None Achievements -------------- None Challenges ------------ None Game ------ Seed DefenseChainRailcannon Manual? 0 Play Time 00:40:47 Cumulative 871.4 hours Start 2025.12.20 @ 00:40:20 End 2025.12.20 @ 01:21:31 Sessions 1 Manual Loads 0 Difficulty Rogue Special Mode None Game No. 559 Rogue 559 Adventurer 0 Explorer 0 Win Type - Total 1 Types 1/0/0/0/0/0/0/0/0/0 Lore% 80 Gallery% 72 Achievement% 53 Wizard Run 0 Options --------- Layout 1 ASCII 0 Keyboard 0 Movement Mouse Keybinds 0 Fullscreen 1 Font 20/SmallcapsGlow Map View 54x42 Zoom Use 0% Tactical HUD 1 Map Filters NONE Filters NONE Steam 1 RUN: 55d62506-afa1-42e3-bef3-2772f75f2a57